Cogmind - Beta 10.2 @@@ ROGUE MODE // 2021.09.04 @ 13:30:39 Player: Sparker Result: Destroyed by G-47 Trooper with Particle Gun Performance ------------- Evolutions (2) 1000 Regions Visited (4) 800 Robots Destroyed (38) 190 Value Destroyed (834) 834 Prototype IDs (1) 20 Alien Tech Used (0) 0 Bonus (0) 0 TOTAL SCORE: 2844 Bonus ------- None Cogmind --------- Core Integrity 0/550 Matter 216/300 Energy 76/100 System Corruption 0% Temperature Cool (9) Movement Rolling (100) Location -8/Materials Parts ------- > --- POWER (1) -------- (None) > --- PROPULSION (3) --- Compact Wheel Compact Wheel > --- UTILITY (5) ------ Improved Heat Sink Improved Terrain Scan Processor > --- WEAPON (2) ------- (None) > --- INVENTORY (4) ---- VTOL Module Peak State ------------ > --- POWER ------------ Light Ion Engine > --- PROPULSION ------- Titanium Leg Titanium Leg Titanium Leg > --- UTILITY ---------- Improved Terrain Scan Processor Medium Armor Plating Medium Armor Plating > --- WEAPON ----------- Battle Cannon Improved Datajack > --- INVENTORY -------- VTOL Module [Rating: 22] Favorites ----------- Power Light Ion Engine Engine Light Ion Engine Propulsion Aluminum Leg Treads Light Treads Leg Aluminum Leg Wheel Compact Wheel Hover Unit Hover Unit Flight Unit Flight Unit Utility Signal Interpreter Device Improved Heat Sink Storage Small Storage Unit Processor Signal Interpreter Protection Light Armor Plating Weapon Assault Rifle Energy Gun Medium Laser Ballistic Gun Assault Rifle Ballistic Cannon Battle Cannon Launcher Mini Grenade Launcher Impact Weapon Flail Slashing Weapon Mining Claw Special Melee Weapon Improved Datajack Build | -11 -10 -9 -9 -8 ------- Run | Scr Mat Mat Min Mat Slots Evolved 4 | . . 2 . 2 Power . | . . . . . Propulsion 1 | . . 1 . . Utility 3 | . . 1 . 2 Weapon . | . . . . . Parts Attached 52 | 6 3 16 10 17 Power 7 | 1 1 2 1 2 Engine 7 | 1 1 2 1 2 Core . | . . . . . Reactor . | . . . . . Propulsion 18 | 2 . 5 3 8 Treads 1 | 1 . . . . Leg 7 | . . 2 . 5 Wheel 4 | 1 . 1 . 2 Hover 1 | . . . . 1 Flight 5 | . . 2 3 . Utility 10 | 1 1 3 1 4 Device 4 | . . 2 1 1 Storage 1 | 1 . . . . Processor 2 | . 1 . . 1 Hackware . | . . . . . Protection 3 | . . 1 . 2 Artifact . | . . . . . Weapon 17 | 2 1 6 5 3 Energy Gun 3 | 1 . 1 1 . Energy Cannon . | . . . . . Ballistic Gun 4 | 1 1 2 . . Ballistic Cannon 1 | . . . . 1 Launcher 4 | . . 2 2 . Special Weapon . | . . . . . Impact Weapon 3 | . . 1 1 1 Slashing Weapon 1 | . . . 1 . Piercing Weapon . | . . . . . Special Melee Weapon 1 | . . . . 1 Unidentified Prototypes 1 | . . 1 . . Parts Lost 37 | . 2 10 8 17 Power 4 | . 1 . 1 2 Propulsion 15 | . . 5 4 6 Utility 7 | . . 2 1 4 Weapon 11 | . 1 3 2 5 Highest Loss Streak 17 | . 1 3 2 17 Average Slot Usage (%) 81 | . 92 89 69 60 Engine 8 | . 8 7 9 3 Treads 6 | . 14 6 . . Leg 7 | . . 14 5 10 Wheel 6 | . 14 5 . . Flight 4 | . . 3 9 3 Device 3 | . . 5 2 6 Storage 10 | . 14 11 9 . Processor 11 | . 12 11 11 12 Protection 1 | . . 3 . 2 Energy Gun 1 | . 2 3 . . Ballistic Gun 11 | . 25 13 . . Launcher 4 | . . 3 11 2 Impact Weapon 3 | . . . 9 1 Naked Turns . | . . . . . Heaviest Build 21 | 11 12 21 18 18 Greatest Support 51 | 20 16 20 20 51 Greatest Overweight (x) 4 | . . 2 4 . Average Overweight (x) . | . . . 1 . Largest Inventory Capacity 6 | 6 6 6 6 4 Average Capacity 5 | 4 6 6 5 4 Most Carried 6 | 6 6 6 6 4 Average Carried 4 | 3 5 4 4 3 Final Capacity 6 | 6 6 6 4 4 Final Carried 6 | 6 6 5 4 1 Class Distribution -------------------- 84% | Mutant 15% | Scavenger-Mutant Dominant Class ---------------- Mutant | -10/Materials Mutant | -9/Materials Mutant | -9/Mines Mutant | -8/Materials Resources | -11 -10 -9 -9 -8 ----------- Run | Scr Mat Mat Min Mat Matter Collected 1098 | 275 112 368 53 290 Remotely . | . . . . . Salvage Created 867 | 98 124 542 34 69 Parts 49 | 1 14 24 8 2 Haulers Intercepted 1 | . . 1 . . Recyclers Shooed . | . . . . . Parts Field Recycled . | . . . . . Retrieved Matter . | . . . . . Parts Self-Destructed . | . . . . . Prevented . | . . . . . Kills | -11 -10 -9 -9 -8 ------- Run | Scr Mat Mat Min Mat Combat Hostiles Destroyed 34 | . 6 18 8 2 Guns 13 | . 6 7 . . Cannons 1 | . . . . 1 AOE 19 | . . 11 7 1 Classes Destroyed 6 | 1 2 2 . 1 Hauler 1 | . . 1 . . Recycler 2 | 1 . 1 . . Operator 1 | . . . . 1 Swarmer 19 | . 3 8 8 . Grunt 10 | . 3 6 . 1 Sentry 5 | . . 4 . 1 Best Kill Streak 8 | 1 3 8 4 1 Combat Bots Only 8 | . 3 8 4 1 Max Kills in Single Turn 3 | 1 1 3 3 1 Gunslinging . | . . . . . Exploded 3 | . . 3 3 1 Melee . | . . . . . Uniques/NPCs Destroyed . | . . . . . Combat | -11 -10 -9 -9 -8 -------- Run | Scr Mat Mat Min Mat Damage Taken 3682 | . 327 933 558 1864 Core 965 | . 63 183 166 553 Absorbed by Shields . | . . . . . Core Remaining (%) 62 | 100 74 . 12 . Volleys Fired 100 | 5 16 44 13 22 Largest 2 | 2 2 2 1 1 Hottest 88 | 70 70 88 65 39 Shots Fired 148 | 10 29 74 13 22 Gun 106 | 10 29 64 3 . Cannon 18 | . . . . 18 Launcher 24 | . . 10 10 4 Special . | . . . . . Kinetic 106 | 5 27 56 . 18 Thermal 18 | 5 2 8 3 . Explosive 24 | . . 10 10 4 Electromagnetic . | . . . . . Robot Hit Streak 10 | 5 5 10 1 5 Robot Miss Streak 5 | 1 5 3 2 2 Penetration Max . | . . . . . Secondary Targets . | . . . . . Shots Hit Robots 108 | 8 18 46 7 29 Core Hits 54 | 2 8 29 8 7 Critical Hits 1 | . . . . 1 Critical Kills . | . . . . . Critical Parts Destroyed 1 | . . . . 1 Melee Attacks 34 | . . 1 12 21 Impact 18 | . . 1 12 5 Slashing 16 | . . . . 16 Piercing . | . . . . . Sneak Attacks . | . . . . . Combat Hostiles . | . . . . . Follow-up Attacks . | . . . . . Damage Inflicted 3469 | 97 222 1663 668 819 Guns 1076 | 97 222 722 35 . Cannons 271 | . . . . 271 Explosions 1670 | . . 941 523 206 Melee 450 | . . . 108 342 Ramming 2 | . . . 2 . Kinetic 1134 | 36 222 605 . 271 Thermal 213 | 61 . 117 35 . Explosive 1670 | . . 941 523 206 Electromagnetic . | . . . . . Impact 171 | . . . 108 63 Slashing 279 | . . . . 279 Piercing . | . . . . . Highest Corruption 6 | . . . 6 . Average Corruption 6 | . . . 6 . Corruption Purged . | . . . . . Effects 7 | . . . 7 . Message Errors 1 | . . . 1 . Matter Fused 2 | . . . 2 . Energy Discharges 2 | . . . 2 . Data Loss (minor) 2 | . . . 2 . Overload Shots . | . . . . . Overflow Damage 217 | . . 106 98 13 Projectiles . | . . . . . Explosions 172 | . . 106 66 . Melee 45 | . . . 32 13 Knockbacks 6 | . . . . 6 Impact . | . . . . . Kinetic 6 | . . . . 6 Secondary . | . . . . . Self-Inflicted Damage 93 | . . 57 36 . Shots 4 | . . 2 2 . Rammed 2 | . . . 2 . Targets Rammed 2 | . . . 2 . Kicked . | . . . . . Crushed . | . . . . . Highest Temperature 60 | 45 18 5 60 30 Average Temperature 15 | 22 10 2 33 14 Received Heat Transfer 1347 | . 102 291 45 909 Siege Activations . | . . . . . Robots Corrupted . | . . . . . Combat Hostiles . | . . . . . Parts Fried 1 | . . . 1 . Impact Corruptions 2 | . . . 2 . Robots Melted . | . . . . . Combat Hostiles . | . . . . . Parts Melted 4 | 1 . 3 . . Heat Transferred 555 | 185 . 296 74 . Parts Sabotaged . | . . . . . Parts Stolen . | . . . . . Parts Stripped . | . . . . . Power Chain Reactions . | . . . . . Missiles Intercepted . | . . . . . Alert | -11 -10 -9 -9 -8 ------- Run | Scr Mat Mat Min Mat Peak Influence 361 | 5 92 254 361 147 Initial 96 | . 3 12 96 56 Average 114 | 2 22 133 217 108 Maximum Alert Level 1 | . . 1 1 . Low Security (%) 76 | 100 100 61 53 100 Level 1 23 | . . 38 46 . Level 2 . | . . . . . Level 3 . | . . . . . Level 4 . | . . . . . Level 5 . | . . . . . High Security . | . . . . . Max Security . | . . . . . Squads Dispatched 2 | . 1 . . 1 Investigation 2 | . 1 . . 1 Extermination . | . . . . . Reinforcement . | . . . . . Assault . | . . . . . Garrison . | . . . . . Intercept . | . . . . . Construction Impeded . | . . . . . Haulers Reinforced . | . . . . . Stealth | -11 -10 -9 -9 -8 --------- Run | Scr Mat Mat Min Mat Distress Signals 1 | . 1 . . . Communications Jammed . | . . . . . Distress Signals . | . . . . . Times Spotted 62 | . 14 18 18 12 Peak Tracking Total 9 | . 7 4 4 9 Tactical Retreats 10 | . 1 1 5 3 Traps | -11 -10 -9 -9 -8 ------- Run | Scr Mat Mat Min Mat Traps Triggered 1 | . 1 . . . Indirectly . | . . . . . Trap Hack Attempts . | . . . . . Triggered . | . . . . . Disarmed . | . . . . . Reprogrammed . | . . . . . Reused . | . . . . . Traps Extracted . | . . . . . Installed . | . . . . . Triggered . | . . . . . Machines | -11 -10 -9 -9 -8 ---------- Run | Scr Mat Mat Min Mat Machines Disabled 1 | . . . . 1 Max in Single Turn 1 | . . . . 1 Machines Sabotaged . | . . . . . Garrisons Compromised . | . . . . . Overloaded Fab Kills . | . . . . . Fab Network Shutdowns . | . . . . . Hacking | -11 -10 -9 -9 -8 --------- Run | Scr Mat Mat Min Mat Machines Accessed 9 | . 5 2 . 2 Terminals 8 | . 5 2 . 1 Fabricators . | . . . . . Repair Stations . | . . . . . Recycling Units . | . . . . . Scanalyzers 1 | . . . . 1 Garrison Access . | . . . . . Total Hacks 31 | . 17 8 . 6 Successful 17 | . 10 4 . 3 Failed 14 | . 7 4 . 3 Catastrophic 1 | . . 1 . . Database Lockouts . | . . . . . Manual 28 | . 17 8 . 3 Terminals 28 | . 17 8 . 3 Fabricators . | . . . . . Repair Stations . | . . . . . Recycling Units . | . . . . . Scanalyzers 3 | . . . . 3 Garrison Access . | . . . . . Terminal Hacks 1 | . 1 . . . Unreport Threat 1 | . 1 . . . Fabricator Hacks . | . . . . . Repair Station Hacks . | . . . . . Recycling Unit Hacks . | . . . . . Scanalyzer 3 | . . . . 3 Insert Component 1 | . . . . 1 Analyze 2 | . . . . 2 Garrison Access Hacks . | . . . . . Unauthorized Hacks 13 | . 9 4 . . Terminals 13 | . 9 4 . . Track 6 | . 4 2 . . Botnet 6 | . 4 2 . . Operators 1 | . 1 . . . Fabricators . | . . . . . Repair Stations . | . . . . . Recycling Units . | . . . . . Scanalyzers . | . . . . . Garrison Access . | . . . . . Data Cores Recovered 1 | . . . . 1 Used . | . . . . . Hacking Detections 8 | . 5 2 . 1 Full Trace Events 2 | . . 1 . 1 Feedback Events . | . . . . . Feedback Blocked . | . . . . . Robot Schematics Acquired . | . . . . . Robots Built . | . . . . . Matter . | . . . . . Time . | . . . . . Total Robot Build Rating . | . . . . . Part Schematics Acquired 1 | . . . . 1 Parts Built . | . . . . . Matter . | . . . . . Time . | . . . . . Total Part Build Rating . | . . . . . Parts Repaired . | . . . . . Time . | . . . . . Parts Recycled . | . . . . . Recycled Matter . | . . . . . Retrieved Matter . | . . . . . Retrieved Components . | . . . . . Parts Scanalyzed 1 | . . . . 1 Part Schematics Acquired 1 | . . . . 1 Parts Damaged . | . . . . . Bothacking | -11 -10 -9 -9 -8 ------------ Run | Scr Mat Mat Min Mat Used RIF Installer . | . . . . . Robots Hacked . | . . . . . Non-combat . | . . . . . Combat . | . . . . . Robot Hacks Applied . | . . . . . Relay Couplers Released . | . . . . . Robots Rewired . | . . . . . Allies Hacked . | . . . . . Hacks Repelled . | . . . . . Allies | -11 -10 -9 -9 -8 -------- Run | Scr Mat Mat Min Mat Total Allies . | . . . . . Largest Group . | . . . . . Highest-Rated Group . | . . . . . Highest-Rated Ally . | . . . . . Total Orders . | . . . . . Ally Attacks . | . . . . . Total Damage . | . . . . . Kills . | . . . . . Allies Corrupted . | . . . . . Allies Melted . | . . . . . Intel | -11 -10 -9 -9 -8 ------- Run | Scr Mat Mat Min Mat Robot Analysis Total . | . . . . . Derelict Logs Recovered 1 | . . . 1 . Drone Launches . | . . . . . Drone Recoveries . | . . . . . Exploration | -11 -10 -9 -9 -8 ------------- Run | Scr Mat Mat Min Mat Turns Passed 2113 | 89 613 618 541 252 Spaces Moved 1457 | 57 523 380 322 175 Core 318 | 2 . 3 193 120 Treads 9 | 3 . 6 . . Legs 297 | . . 154 129 14 Wheels 799 | 52 523 217 . 7 Hover 34 | . . . . 34 Flight . | . . . . . Fastest Speed 50 | 50 100 100 50 50 Average Speed 108 | 101 100 115 141 60 Slowest Speed 250 | 160 100 180 250 130 Overloaded Moves . | . . . . . Propulsion Burnouts . | . . . . . Robots Hopped . | . . . . . Cave-ins Triggered 1 | . . . 1 . Exploration Rate (%) 41 | 5 74 34 71 24 Regions Visited 4 Branch Regions 1 Pre-discovered Areas . | . . . . . Known Exits Taken 3 | . 1 1 1 . Unknown Exits Taken 1 | 1 . . . . Scrap Searched 2 | . . . 2 . Spaces Dug 4 | . . 1 . 3 Terrain Destroyed 207 | . . 73 100 34 Melee 4 | . . 1 . 3 Projectile 2 | . . . . 2 AOE 201 | . . 72 100 29 Terrain Rammed . | . . . . . Walls Destroyed . | . . . . . Machines Disabled . | . . . . . Actions | -11 -10 -9 -9 -8 --------- Run | Scr Mat Mat Min Mat Total 1764 | 75 584 478 373 254 Wait 94 | . 35 35 8 16 Move 1453 | 56 522 379 321 175 Hop . | . . . . . Pick Up 16 | 7 4 2 2 1 Fast Attach 34 | 6 1 8 6 13 Attach 10 | . 1 5 1 3 Detach 2 | . . 1 1 . Swap 8 | . 1 3 3 1 Drop 11 | 1 4 . 4 2 Fire 100 | 5 16 44 13 22 Melee 34 | . . 1 12 21 Ram 1 | . . . 1 . Kick 1 | . . . 1 . Crush . | . . . . . Escape Stasis . | . . . . . Rewire . | . . . . . Trap . | . . . . . Miscellaneous . | . . . . . Route ------- -11/Scrapyard -10/Materials (discovered 2 exits: *Mat x2) -9/Materials (discovered 2 exits: *Mat / *Min) -9/Mines (discovered 2 exits: *Mat x2) -8/Materials History --------- Turn | Location | Event 2 | -11/Scrapyard | Met Revision 17 14 | -11/Scrapyard | Discovered new exit (range 15) 90 | -11/Scrapyard | Entered Materials 301 | -10/Materials | Build established: Mutant 395 | -10/Materials | Discovered new exit (range 13) 407 | -10/Materials | Identified exit to Materials 450 | -10/Materials | Discovered exit to Materials (range 4) 703 | -10/Materials | Entered another Materials area 703 | -9/Materials | Evolved 2 slots: Propulsion x1, Utility x1 1124 | -9/Materials | Discovered new exit (range 12) 1158 | -9/Materials | Destroyed 8 combat bots 1161 | -9/Materials | Lost 3 parts (1n1u1w) 1161 | -9/Materials | Identified exit to Materials 1310 | -9/Materials | Discovered new exit (range 7) 1319 | -9/Materials | Identified exit to Mines 1321 | -9/Materials | Entered Mines 1341 | -9/Mines | Core integrity fell below 50% 1513 | -9/Mines | A weapon hastily lodged in a ceiling crevice suddenly fell to the ground 1575 | -9/Mines | Discovered exit to Materials (range 8) 1621 | -9/Mines | Crushed by falling debris 1809 | -9/Mines | Core integrity fell below 20% 1862 | -9/Mines | Entered Materials 1862 | -8/Materials | Evolved 2 slots: Utility x2 2028 | -8/Materials | Core integrity fell below 50% 2080 | -8/Materials | Core integrity fell below 20% 2114 | -8/Materials | Destroyed by G-47 Trooper with Particle Gun Last Messages --------------- 02084_ The unstable cave ceiling collapses. 02084_ R-06 Scavenger collects Lgt. Nuclear Core. 02088_ R-06 Scavenger knocked back. 02091_ G-47 Trooper knocked back. 02093_ G-50 Soldier knocked back. 02094_ Titanium Leg destroyed. 02094_ R-06 Scavenger collects Imp. Heat Sink. 02099_ Acquired 27 matter. 02100_ Battle Cannon destroyed. 02100_ Acquired 38 matter. 02100_ Titanium Leg destroyed. 02100_ U-05 Engineer builds a Wall. 02102_ R-06 Scavenger destroyed. 02103_ Acquired Com. Wheel. 02105_ U-05 Engineer builds a Wall. 02105_ Acquired Com. Wheel. 02106_ Titanium Leg destroyed. 02108_ Acquired Imp. Heat Sink. 02110_ U-05 Engineer lays Concrete. 02112_ U-05 Engineer builds a Door. Map ----- +----------------------------------------------------+ | [[## + """ """ #?? | | ^ ## [[## # #?? | | [ ! T #?????# # #?? | | ###/### /! #?????# # #?? | | # !! #?????# ###########?? | | # [[[####??# #???????????? | | # ] [[[####### #???????????? | | # """ [[[ #???????????? | | # """ #???????????? | | " """ = #???????????? | | # #???????????? | | # #???????????? | | ###"Y"## # # ########???????????? | | #?#"""## # ?????????????????? | | #?###### # """ "????????????????? | | #####"######## # """ """??????????????? | | # """ """??????????????? | | / """ """??????????????? | | # ""? ""???????????????? | | ############### # ????????????????????? | | ??????# # # =????????????????????? | | ??????# # ####???????????????????? | | ??????# # ###############????????? | | ??????# """ # uu #????????? | | ??????# """ + #????????? | | ??????# """ ; @ gug###??????? | | ??????# #######+########/ ###????? | | ??????# "" ##??? ?# ! #????? | | ??????# S"" "#??# # ##???? | | ??????# "" ##??# ! # #???? | | ??????# #???# # ##???? | | ??????#########???# # #???? | | ??????????????????# # ##???? | | ??????????????????######## #???? | | ?????????????????????????# ##???? | | ?????????????????????????### # # #????? | | ??????????????????????????#### ######????? | | ?????????????????????????????# #?##??????? | | ?????????????????????????????###?????????? | | ?????????????????????????????????????????? | | ?????????????????????????????????????????? | | ?????????????????????????????????????????? | | ?????????????????????????????????????????? | | ?????????????????????????????????????????? | | ?????????????????????????????????????????? | | ?????????????????????????????????????????? | | ?????????????????????????????????????????? | | ?????????????????????????????????????????? | | ?????????????????????????????????????????? | | ?????????????????????????????????????????? | +----------------------------------------------------+ Best States ------------- Heat Dissipation 45 Energy Generation 14 Energy Capacity 280 Matter Stores 300 Matter Capacity 300 Sight Range 16 Robot Scan Range 13 Terrain Scan Density 110 Additional Mass Support 6 Armor Coverage 450 Evasion (%) 53 Recoil Reduction 1 Item Schematics ----------------- VTOL Module | -8/Materials | Scanalyzed Robot Schematics ------------------ None Fabricated ------------ Nothing Alien Tech Used ----------------- None Achievements -------------- None Challenges ------------ None Game ------ Seed ImprovedSuspensionClaw Manual? 0 Play Time 00:46:06 Cumulative 85.9 hours Start 2021.09.03 @ 14:01:56 End 2021.09.04 @ 13:30:39 Sessions 3 Manual Loads 0 Difficulty Rogue Special Mode None Game No. 65 Rogue 65 Adventurer 0 Explorer 0 Win Type - Total 0 Types 0/0/0/0/0/0/0/0/0 Lore% 34 Gallery% 42 Achievement% 30 Wizard Run 0 Options --------- ASCII 0 Keyboard 1 Movement Numpad Keybinds 0 Fullscreen 1 Font 18/SmallcapsGlow Map View 76x50 Tactical HUD 1 Map Filters NONE Filters NONE Steam 1 RUN: a50a2ffd-3179-471f-830c-a91618b2a3cc